Cogmind - Beta 13 *** ADVENTURER MODE // 2024.03.17 @ 23:44:13 Player: skye Result: Destroyed by D-53 Grenadier with Mini Grenade Launcher Performance ------------- Evolutions (2) 1000 Regions Visited (4) 800 Robots Destroyed (52) 260 Value Destroyed (1579) 1579 Prototype IDs (9) 180 Alien Tech Used (0) 0 Bonus (38) 38 TOTAL SCORE: 3857 Bonus ------- Follower Combat Kills 68 Friendly Fire -30 Cogmind --------- Core Integrity 0/550 Matter 274/300 Energy 99/100 System Corruption 0% Temperature Cool (9) Movement Core (50) Location -8/Storage Parts ------- > --- POWER (1) -------- (None) > --- PROPULSION (4) --- (None) > --- UTILITY (3) ------ Signal Interpreter > --- WEAPON (3) ------- (None) > --- INVENTORY (5) ---- Light Nuclear Core Aluminum Leg Targeting Computer Improved Weapon Shielding Peak State ------------ > --- POWER ------------ Improved Ion Engine > --- PROPULSION ------- Aluminum Leg Improved Aluminum Leg Improved Aluminum Leg Improved Aluminum Leg > --- UTILITY ---------- Improved Heat Sink Signal Interpreter Drone Bay > --- WEAPON ----------- Cooled Plasma Cannon Heavy Assault Rifle Assault Cannon > --- INVENTORY -------- Light Nuclear Core Aluminum Leg Targeting Computer Improved Weapon Shielding Light Armor Plating [Rating: 29] Favorites ----------- Power Improved Ion Engine Engine Improved Ion Engine Propulsion Aluminum Leg Leg Aluminum Leg Utility Signal Interpreter Device Heat Sink Processor Signal Interpreter Protection Propulsion Shielding Weapon Assault Rifle Energy Gun Small Laser Energy Cannon Cooled Plasma Cannon Ballistic Gun Assault Rifle Ballistic Cannon Assault Cannon Launcher Rocket Launcher Slashing Weapon Axe Special Melee Weapon Datajack Build | -11 -10 -9 -8 -8 ------- Run | Yrd Mat Mat Mat Sto Slots Evolved 4 | . . 2 2 . Power . | . . . . . Propulsion 2 | . . 1 1 . Utility 1 | . . 1 . . Weapon 1 | . . . 1 . Parts Attached 55 | 5 10 11 12 17 Power 4 | 1 1 1 . 1 Engine 4 | 1 1 1 . 1 Core . | . . . . . Reactor . | . . . . . Propulsion 19 | 2 3 3 4 7 Treads . | . . . . . Leg 19 | 2 3 3 4 7 Wheel . | . . . . . Hover . | . . . . . Flight . | . . . . . Utility 10 | . 2 2 2 4 Device 6 | . 1 1 1 3 Storage . | . . . . . Processor 1 | . 1 . . . Hackware . | . . . . . Protection 3 | . . 1 1 1 Artifact . | . . . . . Weapon 22 | 2 4 5 6 5 Energy Gun 7 | 1 2 . 2 2 Energy Cannon 1 | . . . . 1 Ballistic Gun 7 | 1 2 1 2 1 Ballistic Cannon 1 | . . . . 1 Launcher 2 | . . 1 1 . Special Weapon . | . . . . . Impact Weapon . | . . . . . Slashing Weapon 1 | . . . 1 . Piercing Weapon . | . . . . . Special Melee Weapon 3 | . . 3 . . Unidentified Prototypes 1 | . . . . 1 Parts Lost 22 | . . 1 7 14 Power 2 | . . . 1 1 Propulsion 9 | . . . 2 7 Utility 3 | . . . 1 2 Weapon 8 | . . 1 3 4 Highest Loss Streak 10 | . . 1 6 10 To Critical Strikes . | . . . . . Average Slot Usage (%) 88 | . 92 98 89 78 Engine 9 | . 14 11 7 4 Leg 28 | . 28 32 30 24 Device 16 | . 12 21 8 17 Processor 9 | . 8 11 9 9 Protection 1 | . . . 9 . Energy Gun 6 | . 13 2 6 3 Energy Cannon 2 | . . . . 5 Ballistic Gun 11 | . 14 11 9 11 Special Melee Weapon 3 | . . 6 8 . Naked Turns . | . . . . . Heaviest Build 30 | 6 8 16 20 30 Greatest Support 50 | 20 20 30 50 49 Greatest Overweight (x) 2 | . . 1 . 2 Average Overweight (x) . | . . . . . Largest Inventory Capacity 5 | 5 5 5 5 5 Average Capacity 5 | 5 5 5 5 5 Most Carried 5 | 5 5 5 5 5 Average Carried 4 | 2 4 4 4 4 Final Capacity 5 | 5 5 5 5 5 Final Carried 5 | 4 5 4 3 4 Class Distribution -------------------- 49% | Scavenger-Mutant 31% | Mutant 15% | Scavenger-Gunner Dominant Class ---------------- Scavenger-Mutant | -10/Materials Scavenger-Mutant | -9/Materials Scavenger-Mutant | -8/Materials Scavenger-Gunner | -8/Storage Resources | -11 -10 -9 -8 -8 ----------- Run | Yrd Mat Mat Mat Sto Matter Collected 1228 | 259 172 214 101 482 Remotely . | . . . . . Salvage Created 1759 | 35 311 384 309 720 Parts 108 | 3 27 23 16 39 Haulers Intercepted . | . . . . . Recyclers Shooed 2 | . . . 1 1 Parts Field Recycled . | . . . . . Retrieved Matter . | . . . . . Parts Self-Destructed . | . . . . . Prevented . | . . . . . Kills | -11 -10 -9 -8 -8 ------- Run | Yrd Mat Mat Mat Sto Combat Hostiles Destroyed 44 | 1 11 12 6 14 Guns 29 | 1 11 5 6 6 Cannons 8 | . . . . 8 AOE 7 | . . 7 . . Classes Destroyed 9 | 1 2 2 2 2 Worker 3 | . . 1 . 2 Recycler 1 | . . . . 1 Watcher 4 | . 2 2 . . Swarmer 11 | . 6 4 . 1 Grunt 21 | 1 5 6 3 6 Brawler 1 | . . . 1 . Sentry 9 | . . 2 1 6 Demolisher 1 | . . . . 1 Hunter 1 | . . . 1 . Best Kill Streak 7 | 1 3 7 2 4 Combat Bots Only 7 | 1 3 7 2 3 Max Kills in Single Turn 4 | 1 1 4 1 2 Gunslinging . | . . . . . Exploded 4 | . . 4 . . Melee . | . . . . . Uniques/NPCs Destroyed . | . . . . . Combat | -11 -10 -9 -8 -8 -------- Run | Yrd Mat Mat Mat Sto Hostile Shots Fired 342 | 4 38 41 107 152 Missed 103 | 2 8 15 29 49 Damage Taken 3234 | 17 222 228 977 1790 Core 650 | 8 55 27 98 462 Absorbed by Shields . | . . . . . Redirected to Shielding 34 | . . . 34 . Ignored by Resistances 925 | 6 74 70 285 490 Regen/Repaired (Parts) 56 | . . 56 . . Core Remaining (%) 87 | 96 74 93 . . Volleys Fired 164 | 3 29 33 45 54 Largest 3 | 2 2 2 2 3 Hottest 102 | 60 60 60 88 102 Shots Fired 283 | 6 56 37 71 113 Gun 244 | 6 56 33 70 79 Cannon 34 | . . . . 34 Launcher 5 | . . 4 1 . Special . | . . . . . Kinetic 183 | 3 29 29 45 77 Thermal 95 | 3 27 4 25 36 Explosive 5 | . . 4 1 . Electromagnetic . | . . . . . Robot Hit Streak 16 | 4 16 7 15 16 Robot Miss Streak 4 | 1 4 2 2 2 Penetration Max . | . . . . . Secondary Targets 4 | . 3 . 1 . Max Gunslinging Chain 1 | . 1 . 1 . Shots Hit Robots 211 | 4 39 32 58 78 Core Hits 93 | 2 17 22 21 31 Critical Kills . | . . . . . Critical Parts Destroyed 1 | . . . . 1 Critical Strikes 1 | . . . . 1 Destroy 1 | . . . . 1 Melee Attacks 14 | . . 7 7 . Impact . | . . . . . Slashing . | . . . . . Piercing . | . . . . . Sneak Attacks 10 | . . 7 3 . Combat Hostiles . | . . . . . Follow-up Attacks . | . . . . . Damage Inflicted 3760 | 47 473 743 905 1592 Guns 2338 | 47 471 312 720 788 Cannons 800 | . . . . 800 Explosions 609 | . . 424 185 . Melee . | . . . . . Ramming 13 | . 2 7 . 4 Kinetic 1866 | 25 253 290 466 832 Thermal 1272 | 22 218 22 254 756 Explosive 609 | . . 424 185 . Electromagnetic . | . . . . . Impact . | . . . . . Slashing . | . . . . . Piercing . | . . . . . Highest Corruption . | . . . . . Average Corruption . | . . . . . Corruption Purged . | . . . . . Corruption Blocked . | . . . . . Overload Shots . | . . . . . Overflow Damage 42 | . . 10 . 32 Projectiles 32 | . . . . 32 Explosions 10 | . . 10 . . Melee . | . . . . . Knockbacks 3 | . . . . 3 Impact . | . . . . . Kinetic 2 | . . . . 2 Secondary 1 | . . . . 1 Self-Inflicted Damage 42 | . . 20 22 . Shots 2 | . . 1 1 . Rammed . | . . . . . Targets Rammed 6 | . 1 2 . 3 Kicked 6 | . 1 2 . 3 Crushed . | . . . . . Highest Temperature 354 | 12 60 . 354 47 Average Temperature 96 | 9 32 . 167 16 Received Heat Transfer 1425 | 12 108 63 648 594 Effects 3 | . . . 3 . Energy Bleed 1 | . . . 1 . Interference 2 | . . . 2 . Siege Activations . | . . . . . Robots Corrupted . | . . . . . Combat Hostiles . | . . . . . Parts Fried . | . . . . . Impact Corruptions . | . . . . . Robots Melted . | . . . . . Combat Hostiles . | . . . . . Parts Melted 1 | . . . . 1 Heat Transferred 2395 | 50 500 50 560 1235 Parts Sabotaged . | . . . . . Parts Stolen . | . . . . . Parts Stripped . | . . . . . Power Chain Reactions . | . . . . . Alert | -11 -10 -9 -8 -8 ------- Run | Yrd Mat Mat Mat Sto Peak Influence 303 | 20 303 293 237 218 Initial 43 | . 11 43 33 7 Average 120 | 5 161 146 106 94 Maximum Alert Level 1 | . 1 1 1 1 Low Security (%) 81 | 100 66 64 93 95 Level 1 18 | . 33 35 6 4 Level 2 . | . . . . . Level 3 . | . . . . . Level 4 . | . . . . . Level 5 . | . . . . . High Security . | . . . . . Max Security . | . . . . . Squads Dispatched 8 | . 2 2 1 3 Investigation 3 | . 2 1 . . Extermination . | . . . . . Reinforcement 3 | . . 1 1 1 Assault 2 | . . . . 2 Garrison . | . . . . . Intercept . | . . . . . Searches Triggered . | . . . . . Construction Impeded . | . . . . . Haulers Reinforced . | . . . . . Active Scanning Responses . | . . . . . Cargo Convoy Interrupts . | . . . . . Stealth | -11 -10 -9 -8 -8 --------- Run | Yrd Mat Mat Mat Sto Distress Signals 1 | . . . . 1 Communications Jammed . | . . . . . Distress Signals . | . . . . . Times Spotted 84 | 1 13 17 19 34 Peak Tracking Total 16 | 1 3 7 6 16 Tactical Retreats 2 | . . . . 2 Traps | -11 -10 -9 -8 -8 ------- Run | Yrd Mat Mat Mat Sto Traps Triggered 3 | . 1 1 . 1 Indirectly . | . . . . . Trap Hack Attempts 6 | . . 6 . . Triggered 1 | . . 1 . . Disarmed . | . . . . . Reprogrammed . | . . . . . Reused . | . . . . . Traps Extracted . | . . . . . Installed . | . . . . . Triggered . | . . . . . Machines | -11 -10 -9 -8 -8 ---------- Run | Yrd Mat Mat Mat Sto Machines Disabled . | . . . . . Max in Single Turn . | . . . . . Machines Repaired . | . . . . . Machines Dismantled . | . . . . . Machines Sabotaged . | . . . . . Overloaded Fab Kills . | . . . . . Hacking | -11 -10 -9 -8 -8 --------- Run | Yrd Mat Mat Mat Sto Machines Accessed 15 | . 3 2 1 9 Terminals 13 | . 2 1 1 9 Fabricators . | . . . . . Repair Stations 1 | . . 1 . . Recycling Units 1 | . 1 . . . Scanalyzers . | . . . . . Garrison Access . | . . . . . Total Hacks 50 | . 14 8 3 25 Successful 38 | . 12 6 2 18 Failed 12 | . 2 2 1 7 Catastrophic 2 | . . . . 2 Database Lockouts . | . . . . . Manual 3 | . . . 2 1 Terminals 42 | . 10 4 3 25 Fabricators . | . . . . . Repair Stations 4 | . . 4 . . Recycling Units 4 | . 4 . . . Scanalyzers . | . . . . . Garrison Access . | . . . . . Terminal Hacks 31 | . 8 3 2 18 Record 3 | . . . 1 2 Prototype ID Bank 4 | . 2 . . 2 Open Door 3 | . . . . 3 Emergency Access Points 1 | . . . . 1 Recycling Unit Index 1 | . 1 . . . Scanalyzer Index 2 | . . 1 . 1 Alert Level 4 | . 2 . . 2 Locate Traps 3 | . . 1 . 2 Security Status 1 | . . . 1 . Patrol Status 1 | . . . . 1 Transport Status 1 | . 1 . . . Investigation Status 1 | . . . . 1 Recall Extermination 1 | . . . . 1 Hauler Manifests 1 | . . . . 1 Registered Components 2 | . . 1 . 1 Registered Prototypes 1 | . 1 . . . Zone Layout 1 | . 1 . . . Fabricator Hacks . | . . . . . Repair Station Hacks 3 | . . 3 . . Scan Component 2 | . . 2 . . Repair 1 | . . 1 . . Recycling Unit Hacks 4 | . 4 . . . Recycle Component 1 | . 1 . . . Process 1 | . 1 . . . Report Inventory 1 | . 1 . . . Retrieve Matter 1 | . 1 . . . Scanalyzer . | . . . . . Garrison Access Hacks . | . . . . . Unauthorized Hacks . | . . . . . Terminals . | . . . . . Fabricators . | . . . . . Repair Stations . | . . . . . Recycling Units . | . . . . . Scanalyzers . | . . . . . Garrison Access . | . . . . . Data Cores Recovered . | . . . . . Used . | . . . . . Hacking Detections 11 | . 1 2 1 7 Full Trace Events 2 | . 1 1 . . Feedback Events . | . . . . . Feedback Blocked . | . . . . . Robot Schematics Acquired . | . . . . . Robots Built . | . . . . . Authchips . | . . . . . Time . | . . . . . Total Robot Build Rating . | . . . . . Part Schematics Acquired . | . . . . . Parts Built . | . . . . . Authchips . | . . . . . Time . | . . . . . Total Part Build Rating . | . . . . . Parts Repaired 1 | . . 1 . . Time 26 | . . 26 . . Parts Recycled 1 | . 1 . . . Recycled Matter 4 | . 4 . . . Retrieved Matter 4 | . 4 . . . Retrieved Components . | . . . . . Parts Scanalyzed . | . . . . . Part Schematics Acquired . | . . . . . Parts Damaged . | . . . . . Bothacking | -11 -10 -9 -8 -8 ------------ Run | Yrd Mat Mat Mat Sto Used RIF Installer . | . . . . . Robots Hacked 7 | . . 2 5 . Non-combat 6 | . . 2 4 . Combat 1 | . . . 1 . Robot Hacks Applied 9 | . . 3 6 . parse_system 4 | . . 1 3 . no_distress 3 | . . 1 2 . find_recycling 1 | . . 1 . . find_station 1 | . . . 1 . Relay Couplers Released . | . . . . . Fabnet Peak Effective % . | . . . . . Robots Rewired . | . . . . . Allies Hacked . | . . . . . Hacks Repelled . | . . . . . Allies | -11 -10 -9 -8 -8 -------- Run | Yrd Mat Mat Mat Sto Total Allies 12 | . . . . 12 Largest Group 12 | . . . . 12 Highest-Rated Group 235 | . . . . 235 Highest-Rated Ally 31 | . . . . 31 Total Orders 1 | . . . . 1 EXPLORE 1 | . . . . 1 Ally Attacks 14 | . . . . 14 Total Damage 232 | . . . . 232 Kills 3 | . . . . 3 Allies Corrupted 1 | . . . . 1 Allies Melted . | . . . . . Intel | -11 -10 -9 -8 -8 ------- Run | Yrd Mat Mat Mat Sto Robot Analysis Total . | . . . . . Derelict Logs Recovered . | . . . . . Drone Launches 6 | . . . . 6 Drone Recoveries 2 | . . . . 2 Exploration | -11 -10 -9 -8 -8 ------------- Run | Yrd Mat Mat Mat Sto Turns Passed 3096 | 131 670 815 452 1028 Spaces Moved 2026 | 101 463 549 246 667 Core 35 | 26 . . . 9 Treads . | . . . . . Legs 1991 | 75 463 549 246 658 Wheels . | . . . . . Hover . | . . . . . Flight . | . . . . . Fastest Speed 50 | 50 120 120 120 50 Average Speed 119 | 101 120 120 120 120 Slowest Speed 260 | 120 120 190 120 260 Overloaded Moves . | . . . . . Propulsion Burnouts . | . . . . . Robots Hopped . | . . . . . Cave-ins Triggered . | . . . . . Exploration Rate (%) 33 | 7 39 34 15 74 Regions Visited 4 Branch Regions 1 Pre-discovered Areas . | . . . . . Known Exits Taken 3 | . 1 1 1 . Unknown Exits Taken 1 | 1 . . . . Scrap Searched . | . . . . . Spaces Dug . | . . . . . Terrain Destroyed 47 | . . 34 7 6 Melee . | . . . . . Projectile 6 | . . . . 6 AOE 41 | . . 34 7 . Terrain Rammed . | . . . . . Walls Destroyed . | . . . . . Machines Disabled . | . . . . . Actions | -11 -10 -9 -8 -8 --------- Run | Yrd Mat Mat Mat Sto Total 2443 | 125 520 666 329 803 Wait 56 | . . 35 1 20 Move 2022 | 100 462 548 245 667 Hop . | . . . . . Pick Up 73 | 13 11 13 11 25 Fast Attach . | . . . . . Attach 31 | 5 2 5 5 14 Detach 2 | . . 1 . 1 Swap 24 | . 8 6 7 3 Drop 44 | 4 7 10 8 15 Fire 164 | 3 29 33 45 54 Melee 14 | . . 7 7 . Ram . | . . . . . Kick 6 | . 1 2 . 3 Crush . | . . . . . Escape Stasis . | . . . . . Rewire . | . . . . . Trap 6 | . . 6 . . Miscellaneous 1 | . . . . 1 Route ------- -11/Scrapyard -10/Materials -9/Materials -8/Materials (discovered 2 exits: [*Fac] / *Sto) -8/Storage History --------- Turn | Location | Event 2 | -11/Scrapyard | Met Revision 17 85 | -11/Scrapyard | Discovered new exit (range 8) 132 | -11/Scrapyard | Entered Materials 309 | -10/Materials | Build established: Mutant 414 | -10/Materials | Discovered new exit (range 10) 684 | -10/Materials | Identified exit to Materials 761 | -10/Materials | Build established: Scavenger-Mutant 802 | -10/Materials | Entered another Materials area 802 | -9/Materials | Evolved 2 slots: Propulsion x1, Utility x1 1310 | -9/Materials | Destroyed 7 combat bots 1328 | -9/Materials | Discovered new exit (range 15) 1468 | -9/Materials | Identified exit to Materials 1550 | -9/Materials | Repaired Aluminum Leg 1617 | -9/Materials | Entered another Materials area 1617 | -8/Materials | Evolved 2 slots: Propulsion x1, Weapon x1 1687 | -8/Materials | Discovered new exit (range 9) 1910 | -8/Materials | Discovered new exit (range 14) 2056 | -8/Materials | Lost 6 parts (1p1n1u3w) 2066 | -8/Materials | Identified exit to Storage 2069 | -8/Materials | Entered Storage 2300 | -8/Storage | Build established: Mutant 3001 | -8/Storage | Assisted by bots powering up and referring to "LRC-V3" 3024 | -8/Storage | Met a pair of Derelict thieves 3080 | -8/Storage | Core integrity fell below 50% 3094 | -8/Storage | Core integrity fell below 20% 3097 | -8/Storage | Destroyed by D-53 Grenadier with Mini Grenade Launcher Last Messages --------------- The unstable cave ceiling collapses. K-01 Serf collects debris. Cld. Plasma Cannon destroyed. Imp. Heat Sink destroyed. Imp. Ion Engine destroyed. K-01 Serf destroyed. G-47 Trooper destroyed. The unstable cave ceiling collapses. Imp. Aluminum Leg destroyed. Hvy. Assault Rifle destroyed. K-01 Serf destroyed. The unstable cave ceiling collapses. Door Terminal disabled. R-06 Scavenger collects Prc. Beam Rifle. The unstable cave ceiling collapses. Assault Cannon destroyed. Imp. Aluminum Leg destroyed. The unstable cave ceiling collapses. Terminal disabled. The unstable cave ceiling collapses. Map ----- +----------------------------------------------------+ | ???????????????????????### """" """" #????# ! | | ?????????????????????????# ###### | | ??????????????????#"?????############"## ###### | | ?????????????????##" "#??????# "" | | ?????????????????# ????# T | | ?????????????????# ??# ######## ###### | | ?????????????????# # #??######+###????? | | ?????????????????# + #??# ###### | | ?????????????????? """ """ # #??# """" # | | ?????????????????????" """ ??# #???????" # """ | | ?????????????????????" """???# #???????" # """ | | ?????????????????????##??????# #???????" # """ | | ?????????????????????????????# #???????" # | | ?????????????????????????????# ####????" # """ | | ?????????????????????????????# +???? # """ | | ?????????????????????????????# ####???? # """ | | ?? ????????????????????????# #???????##### [ | | ?? ????????????????????????# #???????????#####! | | ?# ?????????????######?????# #???????????????## | | ?# ?????????????#]] #????## ##??????????????## | | ?# ?????????????#]] ###### #??????????????#[ | | ?# ?????????????#][ + % #??????????????#[ | | ?# ??????? ????####T# #??????????????#[ | | ?# ???"" """ ??????### ### #??????????????## | | ?# #?""" """ ###?????# ########???????????????? | | ?# # """ """ """???### @## #?????????????????? | | ?# + T"#### # #?????????????????? | | ?# # [![ """ # #?????????????????? | | ?# # [![% # #?????????????????? | | ?# +???[[ % # #?????????????????? | | ?# ######### ## ##?????????????????? | | ?# "% %=%=[ % d #??????????????????? | | ?# !****!!ggdg ##??????????????????? | | ?# ######## # # #???#####??????????? | | ?# # = % %# # #???# #??????????? | | ?# # """ ## # #???# #??????????? | | ?# # """ #### * ###" "####???# #??????????? | | ?# # !! """ + % #! #????# #??????????? | | ?# # !! ###### # #????# #??????????? | | ?# / !! """#????# ##== #????# #??????????? | | ?# # R"#????# ##= = #???## ###########? | | ?# # """#????# #########???#T ## #? | | ?# # #????#^#???????????## ## """ #? | | ?# ##########????# #???????????## ## """"?" #? | | ?# #?????????????# #???????????# # "????" #? | | ?# #?????????????? #???????????# # "????" #? | | ?# +?????????????? #???????????# + "?"""" #? | | ?# #?????????????? #???????????# %# """ #? | | ?# +?????????????? ????????????# # ## | | ?# #?????????????? ????##########/#### + | +----------------------------------------------------+ Best States ------------- Heat Dissipation 45 Energy Generation 12 Energy Capacity 265 Matter Stores 300 Matter Capacity 300 Sight Range 16 Robot Scan Range 14 Terrain Scan Density 10 Armor Coverage 150 Resistance: KI 20 Resistance: TH 20 Resistance: EX 20 Resistance: EM 20 Resistance: I 20 Resistance: S 20 Resistance: P 20 Propulsion Shielding 33 Evasion (%) 55 Offensive Hacking 10 Item Schematics ----------------- None Robot Schematics ------------------ None Fabricated ------------ Nothing Alien Tech Used ----------------- None Achievements -------------- Shopping List The More The Merrier Uninvited Guest Challenges ------------ None Game ------ Seed NetworkAlphaSteel Manual? 0 Play Time 00:45:02 Cumulative 5.1 hours Start 2024.03.17 @ 22:58:19 End 2024.03.17 @ 23:44:13 Sessions 1 Manual Loads 0 Difficulty Adventurer Special Mode None Game No. 2 Rogue 0 Adventurer 2 Explorer 0 Win Type - Total 0 Types 0/0/0/0/0/0/0/0/0 Lore% 6 Gallery% 9 Achievement% 9 Wizard Run 0 Options --------- Layout 1 ASCII 0 Keyboard 1 Movement Vi Keybinds 0 Fullscreen 1 Font 24/Terminus Map View 50x40 Zoom Use 0% Tactical HUD 0 Map Filters NONE Filters NONE Steam 1 RUN: 131eb0c4-998b-4ad3-aede-10123c5cdeae